{"text_format":"3","workbook":"xlsx","n_sheets":2,"sheets":["시작","결혼식 예산"],"read":"whole","date_system":"1900"}

{"sheet":"시작","index":0,"n_rows":7,"n_cols":2,"rows_kept":7}
[null,"이 서식 파일 정보"]
[null,"이 서식 파일을 사용하여 실제 결혼식 경비를 다양한 항목에 기록하고 예산에서 이를 추적합니다."]
[null,"각 표에 의류, 장식, 선물, 꽃, 음악, 사진, 접수, 문구류, 운송 및 기타 품목에 대한 비용을 입력합니다."]
[null,"총 예상 경비와 총 실제 경비는 자동으로 계산됩니다."]
[null,"참고: "]
[null,"결혼 비용 예산 워크시트의 A열에서 더 자세한 지침을 확인할 수 있습니다. 이 텍스트는 일부러 숨겨 놓았습니다. 텍스트를 제거하려면 A열을 선택한 다음 [삭제]를 선택합니다. 텍스트를 표시하려면 A열을 선택한 다음 글꼴 색상을 변경합니다."]
[null,"표에 대해 자세히 알아보려면 표 안에서 Shift 키를 누른 채 F10 키를 누르고 [표] 옵션을 선택한 다음, [대체 텍스트]를 선택합니다."]

{"sheet":"결혼식 예산","index":1,"n_rows":93,"n_cols":4,"rows_kept":93,"merged":[[0,1,0,3],[2,1,2,3],[6,1,6,3],[15,1,15,3],[25,1,25,3],[34,1,34,3],[43,1,43,3],[50,1,50,3],[59,1,59,3],[68,1,68,3],[77,1,77,3],[85,1,85,3]]}
[null,"결혼식 예산"]
[]
[null,"비용 합계 "]
[null,"항목 ","예상","실제"]
[null,"비용 합계 ",{"$f":"SUM(예복[[#Totals],[예상]],장식[[#Totals],[예상]],기념품[[#Totals],[예상]],꽃[[#Totals],[예상]],음악[[#Totals],[예상]],사진[[#Totals],[예상]],피로연[[#Totals],[예상]],문구_및_청첩장인쇄[[#Totals],[예상]],교통비[[#Totals],[예상]],기타비용[[#Totals],[예상]])","v":0},{"$f":"SUM(예복[[#Totals],[실제]],장식[[#Totals],[실제]],기념품[[#Totals],[실제]],꽃[[#Totals],[실제]],음악[[#Totals],[실제]],사진[[#Totals],[실제]],피로연[[#Totals],[실제]],문구_및_청첩장인쇄[[#Totals],[실제]],교통비[[#Totals],[실제]],기타비용[[#Totals],[실제]],)","v":0}]
[]
[null,"예복"]
[null,"항목 ","예상","실제"]
[null,"약혼 반지"]
[null,"결혼 반지"]
[null,"신부 드레스"]
[null,"면사포/티아라"]
[null,"기타:"]
[null,"의상 합계",{"$f":"SUBTOTAL(109,예복[예상])","v":0},{"$f":"SUBTOTAL(109,예복[실제])","v":0}]
[]
[null,"장식"]
[null,"항목 ","예상","실제"]
[null,"긴 의자/기타 좌석용 장식"]
[null,"테이블 장식(꽃 제외)"]
[null,"촛불"]
[null,"조명"]
[null,"풍선"]
[null,"기타:"]
[null,"장식 합계",{"$f":"SUBTOTAL(109,장식[예상])","v":0},{"$f":"SUBTOTAL(109,장식[실제])","v":0}]
[]
[null,"선물"]
[null,"항목 ","예상","실제"]
[null,"하객"]
[null,"신부와 신랑"]
[null,"부모님"]
[null,"하객/기타 참석자"]
[null,"기타:"]
[null,"선물 합계",{"$f":"SUBTOTAL(109,기념품[예상])","v":0},{"$f":"SUBTOTAL(109,기념품[실제])","v":0}]
[]
[null,"꽃"]
[null,"항목 ","예상","실제"]
[null,"부케"]
[null,"부토니에르"]
[null,"코르사주"]
[null,"식"]
[null,"기타:"]
[null,"꽃 합계",{"$f":"SUBTOTAL(109,꽃[예상])","v":0},{"$f":"SUBTOTAL(109,꽃[실제])","v":0}]
[]
[null,"음악"]
[null,"항목 ","예상","실제"]
[null,"연주자"]
[null,"피로연 밴드/DJ"]
[null,"기타:"]
[null,"음악 합계",{"$f":"SUBTOTAL(109,음악[예상])","v":0},{"$f":"SUBTOTAL(109,음악[실제])","v":0}]
[]
[null,"사진"]
[null,"항목 ","예상","실제"]
[null,"정식 촬영"]
[null,"스냅"]
[null,"추가 인쇄"]
[null,"사진 앨범"]
[null,"기타:"]
[null,"사진 합계",{"$f":"SUBTOTAL(109,사진[예상])","v":0},{"$f":"SUBTOTAL(109,사진[실제])","v":0}]
[]
[null,"피로연 "]
[null,"항목 ","예상","실제"]
[null,"식장 비용"]
[null,"테이블 및 의자"]
[null,"음식"]
[null,"리넨"]
[null,"기타:"]
[null,"피로연(음악 및 장식 제외)",{"$f":"SUBTOTAL(109,피로연[예상])","v":0},{"$f":"SUBTOTAL(109,피로연[실제])","v":0}]
[]
[null,"문구류/인쇄물"]
[null,"항목 ","예상","실제"]
[null,"청첩장"]
[null,"공지 사항"]
[null,"감사장"]
[null,"개인 문구류"]
[null,"기타:"]
[null,"문구류/인쇄물 합계",{"$f":"SUBTOTAL(109,문구_및_청첩장인쇄[예상])","v":0},{"$f":"SUBTOTAL(109,문구_및_청첩장인쇄[실제])","v":0}]
[]
[null,"교통편"]
[null,"항목 ","예상","실제"]
[null,"리무진/트롤리"]
[null,"주차료"]
[null,"택시"]
[null,"기타:"]
[null,"교통편 합계",{"$f":"SUBTOTAL(109,교통비[예상])","v":0},{"$f":"SUBTOTAL(109,교통비[실제])","v":0}]
[]
[null,"기타 경비"]
[null,"항목 ","예상","실제"]
[null,"주례"]
[null,"교회/식장 비용"]
[null,"웨딩 플래너"]
[null,"결혼식 전날 가족 모임"]
[null,"기타:"]
[null,"기타 비용 합계",{"$f":"SUBTOTAL(109,기타비용[예상])","v":0},{"$f":"SUBTOTAL(109,기타비용[실제])","v":0}]